fUSD/lending_fUSD_20260421
["ID","MTS","AMOUNT","RATE_DAILY","PERIOD"]
[420904305,1776703832925,-204.81679018,0.00043994,120]
[420904306,1776703833000,-1000.0,0.00043994,120]
[420904307,1776703833074,-1000.0,0.00043994,60]
[420904308,1776703833145,-2000.0,0.00043994,120]
[420904309,1776703833219,-1720.92,0.00043994,120]
[420904310,1776703833292,-1495.29,0.00043994,120]
[420904311,1776703833367,-1200.0,0.00043994,120]
[420904312,1776703833440,-1486.85261132,0.00043994,120]
[420904313,1776703833518,-4877.4503,0.00043994,120]
[420904314,1776703833594,-218.87,0.00043994,120]
[420904315,1776703833671,-1000.0,0.00043994,60]
[420904316,1776703833746,-1000.0,0.00043994,120]
[420904317,1776703833818,-800000.0,0.00043994,90]
[420904318,1776703833891,-262.80505375,0.00043994,120]
[420904319,1776703833966,-1067.9248472,0.00043994,120]
[420904320,1776703834036,-192.55360768,0.00043994,120]
[420904321,1776703834105,-200.81590604,0.00043994,120]
[420904322,1776703834176,-300.0,0.00043994,120]
[420904323,1776703834245,-2853.10023007,0.00043994,60]
[420904324,1776703834314,-1836.06,0.00043994,120]
[420904325,1776703834383,-176.10866208,0.00043994,120]
[420904326,1776703834451,-1000.0,0.00043994,120]
[420904327,1776703834522,-1000.0,0.00043994,120]
[420904328,1776703834595,-1000.0,0.00043994,120]
[420904329,1776703834669,-1000.0,0.00043994,120]
[420904330,1776703834742,-1000.0,0.00043994,120]
[420904331,1776703834815,-1000.0,0.00043994,120]
[420904332,1776703834889,-1000.0,0.00043994,120]
[420904333,1776703834964,-410.931318,0.00043994,120]
[420904334,1776703835034,-324.06402992,0.00043994,120]
[420904335,1776703835107,-500.0,0.00043994,120]
[420904336,1776703835177,-500.0,0.00043994,120]
[420904337,1776703835250,-500.0,0.00043994,120]
[420904338,1776703835318,-500.0,0.00043994,120]
[420904339,1776703835387,-500.0,0.00043994,120]
[420904340,1776703835456,-500.0,0.00043994,120]
[420904341,1776703835527,-500.0,0.00043994,120]
[420904342,1776703835601,-381.81475369,0.00043994,120]
[420904343,1776703835675,-1649.1,0.00043994,120]
[420904344,1776703835745,-275.23021861,0.00043994,60]
[420904345,1776703835820,-500.0,0.00043994,120]
[420904346,1776703835894,-500.0,0.00043994,120]
[420904347,1776703835966,-500.0,0.00043994,120]
[420904348,1776703836042,-500.0,0.00043994,120]
[420904349,1776703836111,-523.25819967,0.00043994,120]
[420904350,1776703836182,-1488.46210713,0.00043994,90]
[420904351,1776703836253,-922.34,0.00043994,120]
[420904352,1776703836325,-922.34,0.00043994,120]
[420904353,1776703836398,-922.34,0.00043994,120]
[420904354,1776703836473,-922.34,0.00043994,120]
[420904355,1776703836546,-922.34,0.00043994,120]
[420904356,1776703836621,-922.34,0.00043994,120]
[420904357,1776703836697,-922.34,0.00043994,120]
[420904358,1776703836773,-922.34,0.00043994,120]
[420904359,1776703836850,-922.34,0.00043994,120]
[420904360,1776703836927,-922.34,0.00043994,120]
[420904361,1776703837002,-922.34,0.00043994,120]
[420904362,1776703837078,-922.34,0.00043994,120]
[420904363,1776703837155,-922.34,0.00043994,120]
[420904364,1776703837228,-922.34,0.00043994,120]
[420904365,1776703837305,-922.34,0.00043994,120]
[420904366,1776703837382,-922.34,0.00043994,120]
[420904367,1776703837459,-922.34,0.00043994,120]
[420904368,1776703837537,-922.34,0.00043994,120]
[420904369,1776703837616,-922.34,0.00043994,120]
[420904370,1776703837697,-922.34,0.00043994,120]
[420904371,1776703837776,-922.34,0.00043994,120]
[420904372,1776703837857,-922.34,0.00043994,120]
[420904373,1776703837939,-922.34,0.00043994,120]
[420904374,1776703838017,-922.34,0.00043994,120]
[420904376,1776703838094,-922.34,0.00043994,120]
[420904377,1776703838171,-922.34,0.00043994,120]
[420904378,1776703838250,-922.34,0.00043994,120]
[420904379,1776703838328,-922.34,0.00043994,120]
[420904380,1776703838412,-922.34,0.00043994,120]
[420904381,1776703838494,-2000.0,0.00043994,120]
[420904382,1776703838575,-2000.0,0.00043994,120]
[420904383,1776703838656,-2000.0,0.00043994,120]
[420904384,1776703838734,-2000.0,0.00043994,90]
[420904385,1776703838810,-960.19,0.00043994,120]
[420904386,1776703838887,-960.19,0.00043994,120]
[420904387,1776703838966,-960.19,0.00043994,120]
[420904388,1776703839039,-960.19,0.00043994,120]
[420904397,1776703839113,-960.19,0.00043994,120]
[420904406,1776703839187,-960.19,0.00043994,120]
[420904415,1776703839260,-960.19,0.00043994,120]
[420904423,1776703839334,-960.19,0.00043994,120]
[420904433,1776703839412,-960.19,0.00043994,120]
[420904441,1776703839483,-960.19,0.00043994,120]
[420904449,1776703839555,-960.19,0.00043994,120]
[420904452,1776703839630,-960.19,0.00043994,120]
[420904453,1776703839710,-960.19,0.00043994,120]
[420904454,1776703839787,-960.19,0.00043994,120]
[420904455,1776703839860,-960.19,0.00043994,120]
[420904456,1776703839931,-960.19,0.00043994,120]
[420904457,1776703840005,-960.19,0.00043994,120]
[420904458,1776703840086,-960.19,0.00043994,120]
[420904459,1776703840157,-960.19,0.00043994,120]
[420904460,1776703840228,-960.19,0.00043994,120]
[420904461,1776703840299,-960.19,0.00043994,120]
[420904462,1776703840371,-3142.6638,0.00043994,120]
[420904463,1776703840442,-658.75,0.00043994,120]
[420904464,1776703840516,-5000.0,0.00043994,120]
[420904465,1776703840589,-500.0,0.00043994,120]
[420904466,1776703840664,-500.0,0.00043994,120]
[420904467,1776703840736,-500.0,0.00043994,120]
[420904468,1776703840810,-500.0,0.00043994,120]
[420904469,1776703840885,-500.0,0.00043994,120]
[420904470,1776703840962,-3000.0,0.00043994,120]
[420904471,1776703841034,-1178.07002637,0.00043994,120]
[420904474,1776703841107,-2661.65,0.00043994,120]
[420904475,1776703841178,-2661.65,0.00043994,120]
[420904476,1776703841250,-2661.65,0.00043994,120]
[420904477,1776703841320,-2661.65,0.00043994,120]
[420904478,1776703841392,-2661.65,0.00043994,120]
[420904479,1776703841464,-2661.65,0.00043994,120]
[420904480,1776703841539,-2661.65,0.00043994,120]
[420904481,1776703841614,-2661.65,0.00043994,120]
[420904482,1776703841688,-2661.65,0.00043994,120]
[420904483,1776703841760,-2661.65,0.00043994,120]
[420904484,1776703841833,-2661.65,0.00043994,120]
[420904485,1776703841905,-2661.65,0.00043994,120]
[420904486,1776703841979,-2661.65,0.00043994,120]
[420904487,1776703842052,-2661.65,0.00043994,120]
[420904488,1776703842123,-2661.65,0.00043994,120]
[420904489,1776703842194,-2661.65,0.00043994,120]
[420904490,1776703842263,-2661.65,0.00043994,120]
[420904491,1776703842334,-2661.65,0.00043994,120]
[420904492,1776703842403,-2661.65,0.00043994,120]
[420904493,1776703842476,-2661.65,0.00043994,120]
[420904494,1776703842551,-2661.65,0.00043994,120]
[420904495,1776703842625,-2661.65,0.00043994,120]
[420904496,1776703842702,-2661.65,0.00043994,120]
[420904497,1776703842777,-2661.69141428,0.00043994,120]
[420904498,1776703842849,-2717.22394012,0.00043994,120]
[420904499,1776703842920,-617.63,0.00043994,120]
[420904500,1776703842992,-1000.0,0.00043994,120]
[420904501,1776703843062,-1000.0,0.00043994,120]
[420904503,1776703843132,-1000.0,0.00043994,120]
[420904505,1776703843203,-1000.0,0.00043994,120]
[420904507,1776703843273,-1000.0,0.00043994,120]
[420904508,1776703843345,-712.97478887,0.00043994,120]
[420904509,1776703843415,-379.42751336,0.00043994,120]
[420904510,1776703843485,-4687.9277499,0.00043994,60]
[420904511,1776703843559,-848.23692662,0.00043994,120]
[420904512,1776703843634,-179.59454357,0.00043994,120]
[420904513,1776703843707,-1676.61681199,0.00043994,120]
[420904514,1776703843786,-3280.84345996,0.00043994,60]
[420904515,1776703843864,-2094.03927368,0.00043994,120]
[420904516,1776703843936,-1062.16787231,0.00043994,120]
[420904517,1776703844008,-362.69038913,0.00043994,120]
[420904518,1776703844078,-261.11275112,0.00043994,120]
[420904519,1776703844146,-1205.10833424,0.00043994,120]
[420904520,1776703844217,-416.0923243,0.00043994,120]
[420904521,1776703844285,-256.82125811,0.00043994,120]
[420904522,1776703844353,-402.19333141,0.00043994,120]
[420904523,1776703844424,-462.31511902,0.00043994,120]
[420904524,1776703844493,-376.43236867,0.00043994,120]
[420904525,1776703844568,-1158.80389793,0.00043994,120]
[420904526,1776703844643,-1089.72389962,0.00043994,60]
[420904527,1776703844715,-1710.00962004,0.00043994,120]
[420904528,1776703844791,-523.54923265,0.00043994,120]
[420904529,1776703844866,-2048.22531585,0.00043994,120]
[420904530,1776703844941,-196.37527614,0.00043994,120]
[420904531,1776703845017,-575.19653761,0.00043994,60]
[420904532,1776703845095,-816.52794689,0.00043994,120]
[420904533,1776703845167,-1496.60389614,0.00043994,120]
[420904534,1776703845241,-2579.54074567,0.00043994,120]
[420904535,1776703845313,-321.66658058,0.00043994,120]
[420904536,1776703845385,-510.32796001,0.00043994,120]
[420904537,1776703845457,-787.39518149,0.00043994,120]
[420904538,1776703845531,-688.92520674,0.00043994,120]
[420904539,1776703845605,-1097.64300912,0.00043994,120]
[420904540,1776703845680,-298.3304827,0.00043994,120]
[420904541,1776703845784,-1694.47457878,0.00043994,120]
[420904542,1776703845878,-2300.0,0.00043994,120]
[420904543,1776703845980,-1924.58964754,0.00043994,120]
[420904544,1776703846081,-3047.66199173,0.00043994,120]
[420904546,1776703846170,-1471.2925058,0.00043994,120]
[420904547,1776703846265,-1880.0,0.00043994,120]
[420904548,1776703846356,-2100.0,0.00043994,120]
[420904549,1776703846452,-1479.76235007,0.00043994,120]
[420904550,1776703846563,-292.35428526,0.00043994,120]
[420904551,1776703846660,-1289.34102457,0.00043994,120]
[420904552,1776703846755,-2054.48879334,0.00043994,120]
[420904553,1776703846868,-1766.14744947,0.00043994,120]
[420904555,1776703846974,-252.00667618,0.00043994,120]
[420904556,1776703847076,-2553.67713002,0.00043994,120]
[420904558,1776703847172,-3074.22606844,0.00043994,120]
[420904560,1776703849815,-260.56769098,0.00043994,120]
[420904561,1776703849935,-166.35119079,0.00043994,120]
[420904562,1776703850047,-451.3540399,0.00043994,120]
[420904563,1776703850126,-449.13660126,0.00043994,120]
[420904564,1776703850195,-2417.55778372,0.00043994,120]
[420904565,1776703850266,-269.83708691,0.00043994,120]
[420904566,1776703850338,-308.80447361,0.00043994,120]
[420904567,1776703850410,-422.15103037,0.00043994,120]
[420904568,1776703850481,-523.76832842,0.00043994,120]
[420904569,1776703850558,-5969.18216219,0.00043994,120]
[420904570,1776703850633,-2123.62197121,0.00043994,120]
[420904571,1776703850708,-1116.81170839,0.00043994,120]
[420904572,1776703850781,-617.33276147,0.00043994,120]
[420904573,1776703850857,-205.06325229,0.00043994,120]
[420904574,1776703850930,-272.6039693,0.00043994,120]
[420904575,1776703851002,-1434.26000642,0.00043994,120]
[420904576,1776703851075,-2272.33506358,0.00043994,120]
[420904577,1776703851148,-259.91263384,0.00043994,120]
[420904578,1776703851217,-4699.33726484,0.00043994,120]
[420904579,1776703851287,-261.51893562,0.00043994,120]
[420904580,1776703851355,-222.76237436,0.00043994,120]
[420904581,1776703851424,-3794.64980963,0.00043994,120]
[420904582,1776703851493,-15207.39982332,0.00043994,120]
[420904583,1776703851564,-311.7855358,0.00043994,120]
[420904584,1776703851637,-1250.49826429,0.00043994,120]
[420904585,1776703851713,-33596.67710897,0.00043994,60]
[420904586,1776703851785,-310.99661036,0.00043994,120]
[420904587,1776703851858,-996.64439064,0.00043994,120]
[420904588,1776703851931,-808.07121502,0.00043994,120]
[420904589,1776703852003,-1449.61431292,0.00043994,120]
[420904590,1776703852076,-1449.24048042,0.00043994,120]
[420904591,1776703852147,-756.0,0.00043994,120]
[420904592,1776703852221,-2235.22294809,0.00043994,120]
[420904593,1776703852295,-3941.00992879,0.00043994,120]
[420904594,1776703852372,-350.47620323,0.00043994,120]
[420904595,1776703852443,-36013.87432936,0.00043994,60]
[420904596,1776703852519,-1094.02820622,0.00043994,120]
[420904597,1776703852598,-258.47022941,0.00043994,120]
[420904598,1776703852676,-527.53124076,0.00043994,120]
[420904599,1776703852752,-184.18644429,0.00043994,120]
[420904600,1776703852827,-854.88411765,0.00043994,120]
[420904601,1776703852901,-1608.38948575,0.00043994,120]
[420904602,1776703852975,-564.43952878,0.00043994,120]
[420904603,1776703853049,-2087.55589447,0.00043994,120]
[420904604,1776703853122,-268.90513957,0.00043994,120]
[420904605,1776703853196,-2124.1021905,0.00043994,120]
[420904606,1776703853269,-1296.58126145,0.00043994,120]
[420904607,1776703853344,-200.64262187,0.00043994,120]
[420904608,1776703853416,-279.94023161,0.00043994,120]
[420904609,1776703853489,-902.73433098,0.00043994,120]
[420904610,1776703853566,-491.39892968,0.00043994,120]
[420904611,1776703853641,-4050.79397315,0.00043994,120]
[420904612,1776703853717,-1287.08906905,0.00043994,120]
[420904613,1776703853790,-1241.65745348,0.00043994,120]
[420904614,1776703853862,-487.33414828,0.00043994,120]
[420904615,1776703853935,-909.80776563,0.00043994,120]
[420904616,1776703854009,-895.95989679,0.00043994,120]
[420904617,1776703854080,-500.0,0.00043994,120]
[420904618,1776703854151,-1527.21655023,0.00043994,120]
[420904619,1776703854220,-1634.86375887,0.00043994,120]
[420904620,1776703854289,-1815.2309063,0.00043994,120]
[420904621,1776703854359,-1396.99697714,0.00043994,120]
[420904622,1776703854429,-262.24183924,0.00043994,120]
[420904623,1776703854499,-2116.77324323,0.00043994,120]
[420904624,1776703854574,-1227.53152782,0.00043994,120]
[420904625,1776703854647,-290.64749642,0.00043994,120]
[420904626,1776703854720,-203.1742169,0.00043994,120]
[420904627,1776703854794,-1859.4858932,0.00043994,120]
[420904628,1776703854870,-1788.73269512,0.00043994,120]
[420904629,1776703854948,-289.3398079,0.00043994,120]
[420904630,1776703855022,-491.08973709,0.00043994,120]
[420904631,1776703855163,-2529.31503152,0.00043994,120]
[420904632,1776703855232,-158.80786709,0.00043994,120]
[420904633,1776703855302,-825.20106249,0.00043994,60]
[420904634,1776703855371,-601.75830652,0.00043994,120]
[420904635,1776703855442,-3021.73778874,0.00043994,60]
[420904636,1776703855514,-782.05832376,0.00043994,90]
[420904637,1776703855589,-758.36224522,0.00043994,120]
[420904638,1776703855663,-3336.24985781,0.00043994,120]
[420904639,1776703855736,-4725.02580256,0.00043994,60]
[420904640,1776703855811,-206.07281423,0.00043994,120]
[420904641,1776703855886,-1712.70541374,0.00043994,120]
[420904642,1776703855961,-2646.803794,0.00043994,120]
[420904643,1776703856032,-501.50333388,0.00043994,120]
[420904644,1776703856102,-317.43480315,0.00043994,120]
[420904645,1776703856174,-1005.60165161,0.00043994,120]
[420904646,1776703856246,-1005.61600432,0.00043994,120]
[420904647,1776703856317,-1688.26072635,0.00043994,120]
[420904648,1776703856388,-2000.0,0.00043994,120]
[420904649,1776703856459,-500.0,0.00043994,120]
[420904650,1776703856532,-500.0,0.00043994,120]
[420904651,1776703856607,-500.0,0.00043994,120]
[420904652,1776703856681,-180408.32718702,0.00043994,120]
[420904653,1776703856755,-27588.5345,0.00043994,120]
[420904654,1776703856826,-1846.92971144,0.00043994,120]
[420904655,1776703856901,-904.0,0.00043994,120]
[420904656,1776703856974,-904.0,0.00043994,120]
[420904657,1776703857047,-904.0,0.00043994,120]
[420904658,1776703857119,-904.0,0.00043994,120]
[420904659,1776703857188,-904.0,0.00043994,120]
[420904660,1776703857256,-904.0,0.00043994,120]
[420904661,1776703857325,-904.0,0.00043994,120]
[420904662,1776703857394,-904.0,0.00043994,120]
[420904663,1776703857464,-904.0,0.00043994,120]
[420904664,1776703857536,-904.0,0.00043994,120]
[420904665,1776703857610,-904.0,0.00043994,120]
[420904666,1776703857684,-904.0,0.00043994,120]
[420904667,1776703857755,-904.0,0.00043994,120]
[420904668,1776703857826,-904.0,0.00043994,120]
[420904669,1776703857897,-904.0,0.00043994,120]
[420904670,1776703857967,-904.0,0.00043994,120]
[420904671,1776703858042,-904.0,0.00043994,120]
[420904672,1776703858115,-904.0,0.00043994,120]
[420904673,1776703858184,-904.0,0.00043994,120]
[420904674,1776703858255,-904.04,0.00043994,120]
[420904675,1776703858325,-759.91460076,0.00043994,120]
[420904676,1776703858393,-2317.15,0.00043994,120]
[420904677,1776703858462,-50000.0,0.00043994,120]
[420904678,1776703858535,-50000.0,0.00043994,120]
[420904679,1776703858610,-101512.84,0.00043994,120]
[420904680,1776703858684,-17399.94,0.00043994,120]
[420904681,1776703858756,-47260.08,0.00043994,120]
[420904682,1776703858829,-62788.09,0.00043994,120]
[420904683,1776703858903,-83217.74,0.00043994,120]
[420904684,1776703858975,-50000.0,0.00043994,120]
[420904685,1776703859047,-935.97726998,0.00043994,120]
[420904686,1776703859117,-488.45,0.00043994,120]
[420904687,1776703859186,-1000.0,0.00043994,120]
[420904688,1776703859256,-1000.0,0.00043994,120]
[420904689,1776703859326,-1000.0,0.00043994,120]
[420904690,1776703859396,-1000.0,0.00043994,120]
[420904691,1776703859468,-1000.0,0.00043994,120]
[420904692,1776703859548,-1000.0,0.00043994,120]
[420904693,1776703859628,-1000.0,0.00043994,120]
[420904694,1776703859705,-1000.0,0.00043994,120]
[420904695,1776703859778,-1000.0,0.00043994,120]
[420904696,1776703859852,-68740.36509637,0.00043994,120]
[420904697,1776703859927,-3482.07744785,0.00043994,120]
[420904698,1776703859999,-10770.97290382,0.00043994,120]
[420904699,1776703860074,-35467.78443827,0.00043994,120]
[420904700,1776703860148,-9150.3916596,0.00043994,60]
[420904701,1776703860224,-312.38557421,0.00043994,120]
[420904702,1776703860302,-174.44657091,0.00043994,120]
[420904703,1776703860387,-5000.0,0.00043994,120]
[420904704,1776703860464,-10000.0,0.00043994,120]
[420904705,1776703860542,-5000.0,0.00043994,120]
[420904706,1776703860621,-5000.0,0.00043994,120]
[420904707,1776703860700,-5000.0,0.00043994,120]
[420904708,1776703860777,-10000.0,0.00043994,120]
[420904709,1776703860855,-10000.0,0.00043994,120]
[420904710,1776703860932,-10000.0,0.00043994,120]
[420904711,1776703861006,-10000.0,0.00043994,120]
[420904712,1776703861079,-10000.0,0.00043994,120]
[420904713,1776703861152,-10000.0,0.00043994,120]
[420904714,1776703861225,-10000.0,0.00043994,120]
[420904715,1776703861297,-10000.0,0.00043994,120]
[420904716,1776703861370,-10000.0,0.00043994,120]
[420904717,1776703861442,-10000.0,0.00043994,120]
[420904718,1776703861515,-1359.25947,0.00043994,120]
[420904719,1776703861593,-2000000.0,0.00043994,120]
[420904720,1776703861671,-2000000.0,0.00043994,60]
[420904721,1776703861748,-2000000.0,0.00043994,60]
[420904722,1776703861823,-2000000.0,0.00043994,60]
[420904723,1776703861898,-10000.0,0.00043994,120]
[420904724,1776703861974,-10000.0,0.00043994,120]
[420904725,1776703862049,-10000.0,0.00043994,120]
[420904726,1776703862123,-10000.0,0.00043994,120]
[420904727,1776703862196,-10000.0,0.00043994,120]
[420904728,1776703862269,-10000.0,0.00043994,120]
[420904729,1776703862340,-10000.0,0.00043994,120]
[420904730,1776703862414,-10000.0,0.00043994,120]
[420904731,1776703862489,-10000.0,0.00043994,120]
[420904732,1776703862565,-10000.0,0.00043994,120]
[420904733,1776703862641,-10000.0,0.00043994,120]
[420904734,1776703862865,-15695.51595482,0.00043994,120]
[420904735,1776703862939,-10000.0,0.00043994,120]
[420904736,1776703863010,-10000.0,0.00043994,120]
[420904737,1776703863078,-7858.04,0.00043994,120]
[420904738,1776703863145,-10000.0,0.00043994,120]
[420904739,1776703863215,-10000.0,0.00043994,120]
[420904740,1776703863283,-10000.0,0.00043994,120]
[420904741,1776703863362,-10000.0,0.00043994,120]
[420904742,1776703863436,-1846.43,0.00043994,120]
[420904743,1776703863509,-1003.0,0.00043994,120]
[420904744,1776703863584,-500.0,0.00043994,120]
[420904745,1776703863658,-181032.45903185,0.00043994,120]
[420904746,1776703863731,-2032.9,0.00043994,120]
[420904747,1776703863806,-136344.7,0.00043994,120]
[420904748,1776703863881,-300.0,0.00043994,120]
[420904749,1776703863956,-1000.0,0.00043994,120]
[420904750,1776703864029,-10000.0,0.00043994,120]
[420904751,1776703864102,-10000.0,0.00043994,120]
[420904752,1776703864172,-10000.0,0.00043994,120]
[420904753,1776703864242,-10000.0,0.00043994,120]
[420904754,1776703864311,-10000.0,0.00043994,120]
[420904755,1776703864382,-10000.0,0.00043994,120]
[420904756,1776703864452,-5000.0,0.00043994,120]
[420904757,1776703864525,-5000.0,0.00043994,120]
[420904758,1776703864611,-5000.0,0.00043994,120]
[420904759,1776703864688,-5000.0,0.00043994,120]
[420904760,1776703864763,-5600.0,0.00043994,120]
[420904761,1776703864841,-18836.36770799,0.00043994,120]
[420904762,1776703880465,4605.1700681,7.18e-05,2]
[420904763,1776703882053,150.0,8.22e-05,2]
[420904767,1776703882603,250.0,7.18e-05,2]
[420904773,1776703901217,150.0,8.228e-05,2]
[420904774,1776703902691,437.38252993,7.945e-05,2]
[420904775,1776703902714,10000.01,7.945e-05,2]
[420904776,1776703902737,10000.01,7.945e-05,2]
[420904777,1776703902758,9646.05506307,7.945e-05,2]
[420904778,1776703912958,353.95493693,8.129e-05,2]
[420904779,1776703912985,10000.01,8.129e-05,2]
[420904780,1776703913012,10000.01,8.129e-05,2]
[420904781,1776703913040,10000.01,8.129e-05,2]
[420904782,1776703913066,10000.01,8.129e-05,2]
[420904783,1776703913100,103675.45576307,8.129e-05,2]
[420904784,1776703922658,593.402,8.129e-05,2]
[420904785,1776703925584,9406.608,8.129e-05,2]
[420904786,1776703925609,15703.5374,8.129e-05,2]
[420904787,1776703927467,250.0,7.18e-05,2]
[420904788,1776703927763,2619.875406,8.178e-05,2]
[420904791,1776703940827,2600.0,8e-05,2]
[420904792,1776703946929,-250.0,8.228e-05,2]
[420904793,1776703951135,1200.0,7.179e-05,2]
[420904794,1776703951174,300.0,7.179e-05,2]
[420904795,1776703951474,1680.0,7.896e-05,2]
[420904796,1776703951775,195.52411365,7.898e-05,2]
[420904797,1776703953479,593.54833749,8.203e-05,2]
[420904798,1776703953922,500.0,8.203e-05,2]
[420904799,1776703953999,250.0,7.897e-05,2]
[420904800,1776703954121,165.26815384,8.203e-05,2]
[420904801,1776703955197,500.0,8.203e-05,2]
[420904802,1776703955443,600.0,8.203e-05,2]
[420904803,1776703955482,562.81492935,8.203e-05,2]
[420904810,1776703966293,-2144.34,8.315e-05,2]
[420904811,1776703966303,-250.0,8.33e-05,2]
[420904812,1776703966313,-1612.19780931,8.52e-05,2]
[420904813,1776703966325,-390.32845018,8.52e-05,2]
[420904815,1776703966335,-150.0,8.52e-05,2]
[420904816,1776703966344,-260.67,8.533e-05,2]
[420904817,1776703966354,-2351.0,8.686e-05,2]
[420904818,1776703966363,-522.06145725,8.751e-05,2]
[420904819,1776703966373,-250.0,8.767e-05,2]
[420904820,1776703966382,-150.0,8.82e-05,2]
[420904821,1776703966392,-150.99,8.864e-05,2]
[420904822,1776703966401,-96120.89,8.864e-05,2]
[420904823,1776703966410,-1527.76,8.864e-05,2]
[420904824,1776703966421,-9999.99,8.864e-05,2]
[420904825,1776703966430,-2074.07,8.864e-05,2]
[420904826,1776703966440,-299.99,8.864e-05,2]
[420904827,1776703966449,-999.99,8.864e-05,2]
[420904828,1776703966459,-1516.03933209,8.998e-05,2]
[420904829,1776703966468,-150.0,9e-05,2]
[420904830,1776703966478,-255.0,9.051e-05,2]
[420904831,1776703966487,-219.64,9.105e-05,2]
[420904832,1776703966496,-150.0,9.12e-05,2]
[420904833,1776703966506,-1852.42,9.33e-05,2]
[420904834,1776703966515,-150.0,9.42e-05,2]
[420904837,1776703967006,-461.0,9.555e-05,2]
[420904838,1776703967016,-4902.79,9.653e-05,2]
[420904839,1776703967025,-271.0,9.705e-05,2]
[420904840,1776703967035,-150.0,9.72e-05,2]
[420904841,1776703967044,-2000.0,9.749e-05,2]
[420904842,1776703967053,-198.0,9.956e-05,2]
[420904843,1776703967062,-150.0,0.00010117,2]
[420904844,1776703967071,-150.0,0.00010177,2]
[420904845,1776703967080,-162.7505,0.00010275,2]
[420904846,1776703967089,-27635.0039665,0.00010292,2]
[420904847,1776703967098,-150.0,0.0001032,2]
[420904848,1776703967107,-362.96,0.00010469,2]
[420904849,1776703967116,-200.0,0.00010469,2]
[420904850,1776703967125,-151.0,0.00010469,2]
[420904851,1776703967135,-151.0,0.00010469,2]
[420904852,1776703967144,-151.0,0.00010469,2]
[420904853,1776703967153,-151.0,0.00010469,2]
[420904854,1776703967162,-151.0,0.00010469,2]
[420904855,1776703967172,-151.0,0.00010469,2]
[420904856,1776703967181,-151.0,0.00010469,2]
[420904857,1776703967190,-151.0,0.00010469,2]
[420904858,1776703967199,-151.0,0.00010469,2]
[420904859,1776703967209,-151.0,0.00010469,2]
[420904860,1776703967218,-151.0,0.00010469,2]
[420904861,1776703967227,-151.0,0.00010469,2]
[420904862,1776703967237,-151.0,0.00010469,2]
[420904863,1776703967247,-151.0,0.00010469,2]
[420904864,1776703967256,-151.0,0.00010469,2]
[420904865,1776703967265,-151.0,0.00010469,2]
[420904866,1776703967275,-151.0,0.00010469,2]
[420904867,1776703967284,-289.28670008,0.00010469,2]
[420904868,1776703967294,-2000.0,0.00010475,2]
[420904869,1776703967303,-200.0,0.00010475,2]
[420904870,1776703967312,-1600.0,0.00010485,2]
[420904871,1776703967322,-1332.17574674,0.0001058,2]
[420904872,1776703967332,-200.0,0.0001058,2]
[420904873,1776703967341,-150.0,0.0001062,2]
[420904874,1776703967351,-200.0,0.00010686,2]
[420904875,1776703967360,-362.96,0.00010743,2]
[420904876,1776703967370,-200.0,0.00010792,2]
[420904877,1776703967379,-150.0,0.00010886,2]
[420904878,1776703967389,-150.0,0.00010886,2]
[420904879,1776703967398,-150.0,0.00010886,2]
[420904880,1776703967407,-200.0,0.000109,2]
[420904881,1776703967417,-150.0,0.0001092,2]
[420904882,1776703967425,-1000.32355459,0.00010959,2]
[420904883,1776703967435,-500.0,0.00010959,2]
[420904884,1776703967444,-3240.0,0.00010959,2]
[420904885,1776703967453,-150.0,0.00010959,2]
[420904887,1776703967463,-2000.0,0.00010968,2]
[420904888,1776703967475,-1218.48987384,0.00010999,2]
[420904889,1776703967484,-4150.7,0.00011,2]
[420904890,1776703967493,-4150.7,0.00011,2]